fUSD/lending_fUSD_20251023
["ID","MTS","AMOUNT","RATE_DAILY","PERIOD"]
[392135415,1761202246373,-15646.79239573,0.00045,120]
[392135416,1761202246384,-1968.05247527,0.00045,120]
[392137330,1761202764073,285.1,0.00013699,2]
[392137331,1761202764283,285.1,0.00020187,2]
[392137334,1761203006973,168.70925402,0.00036182,120]
[392137335,1761203041917,331.94982213,0.00036182,120]
[392137337,1761203252101,-285.1,0.00026676,2]
[392137338,1761203252126,-304.60928756,0.00026676,2]
[392137339,1761203252147,-35.3067365,0.0002746,120]
[392137340,1761203351190,-388.67947269,0.0002746,120]
[392137341,1761203351209,-184.27125,0.00028244,2]
[392137342,1761203351229,-300.0,0.00029344,120]
[392137343,1761203351249,-78.36523677,0.00033165,2]
[392137344,1761203373093,-206.73476323,0.00033165,2]
[392137345,1761203373114,-870.91514777,0.00036,2]
[392137353,1761203432264,-765.34485223,0.00036,2]
[392137354,1761203432277,-150.0,0.00036182,2]
[392137355,1761203432287,-1439.0,0.00036999,3]
[392137356,1761203432297,-300.0,0.00036999,3]
[392137357,1761203432307,-1600.0,0.00036999,3]
[392137358,1761203432317,-5000.0,0.00037,2]
[392137359,1761203432327,-500.0,0.00037773,2]
[392137360,1761203432337,-5000.0,0.00038,2]
[392137361,1761203432346,-791.58952169,0.00039,2]
[392137418,1761203437991,-151.93086821,0.00036899,2]
[392137420,1761203438001,-953.60938207,0.00039,2]
[392137432,1761203438289,-69.44622483,0.00039,2]
[392137433,1761203438300,-3185.35487141,0.00039,2]
[392137434,1761203438310,-329.806921,0.00039452,120]
[392137435,1761203438319,-336.697771,0.00039452,120]
[392137436,1761203438328,-307.40217,0.00039452,120]
[392137437,1761203438338,-285.1,0.00039654,2]
[392137438,1761203438348,-4896.14908169,0.0004,2]
[392137449,1761203438460,-103.85091831,0.0004,2]
[392137451,1761203438469,-187.273,0.00040213,57]
[392137453,1761203438478,-150.0,0.00040488,4]
[392137455,1761203438487,-150.0,0.00040488,4]
[392137457,1761203438496,-148.40467669,0.00040488,4]
[392137459,1761203438507,-1.59532331,0.00040488,4]
[392137461,1761203438516,-150.0,0.00040488,4]
[392137463,1761203438525,-150.0,0.00040488,4]
[392137465,1761203438535,-150.0,0.00040488,4]
[392137467,1761203438544,-150.0,0.00040488,4]
[392137469,1761203438553,-150.0,0.00040488,4]
[392137471,1761203438562,-150.0,0.00040488,4]
[392137473,1761203438572,-150.0,0.00040488,4]
[392137475,1761203438583,-647.16703358,0.00041,2]
[392137570,1761203440012,-4352.83296642,0.00041,2]
[392137573,1761203440023,-150.0,0.0004113,30]
[392137575,1761203440033,-150.0,0.00041387,30]
[392137577,1761203440042,-150.0,0.00041612,30]
[392137578,1761203440051,-150.0,0.00041773,30]
[392137579,1761203440061,-476.0,0.00041987,4]
[392137580,1761203440071,-150.0,0.00041987,30]
[392137581,1761203440082,-5000.0,0.00042,2]
[392137582,1761203440092,-1852.42,0.00042024,2]
[392137583,1761203440102,-206.38,0.00042039,2]
[392137584,1761203440111,-250.0,0.00042053,120]
[392137585,1761203440121,-150.0,0.00042287,30]
[392137586,1761203440131,-150.0,0.00042416,30]
[392137587,1761203440142,-168.0,0.00042553,2]
[392137588,1761203440153,-150.0,0.00042737,30]
[392137589,1761203440173,-150.0,0.00042737,30]
[392137590,1761203440189,-150.0,0.00042737,30]
[392137591,1761203440199,-150.0,0.00042737,30]
[392137592,1761203440208,-150.0,0.00042737,30]
[392137593,1761203440218,-150.0,0.00042737,30]
[392137594,1761203440228,-5000.0,0.00043,2]
[392137595,1761203440238,-150.0,0.00043058,30]
[392137596,1761203440247,-2659.01548946,0.00043112,120]
[392137597,1761203440259,-289.96272971,0.00043112,120]
[392137598,1761203440269,-150.0,0.00043187,30]
[392137599,1761203440281,-500.0,0.00043322,7]
[392137600,1761203440293,-422.59848915,0.00043414,30]
[392137601,1761203440304,-377.40151085,0.00043414,30]
[392137602,1761203440314,-150.0,0.00043487,30]
[392137603,1761203440324,-500.0,0.00043508,30]
[392137604,1761203440333,-368.0,0.0004365,30]
[392137605,1761203440342,-150.0,0.00043701,30]
[392137606,1761203440353,-1000.0,0.00043705,2]
[392137607,1761203440363,-150.0,0.00043862,30]
[392137608,1761203440373,-151.0,0.00043974,2]
[392137609,1761203440383,-151.0,0.00043974,2]
[392137610,1761203440393,-151.0,0.00043974,2]
[392137611,1761203440403,-151.0,0.00043974,2]
[392137612,1761203440413,-151.0,0.00043974,2]
[392137613,1761203440423,-151.0,0.00043974,2]
[392137614,1761203440433,-151.0,0.00043974,2]
[392137615,1761203440444,-256.86999069,0.00043974,2]
[392137616,1761203440455,-515.7916042,0.00043999,120]
[392137617,1761203440465,-739.52,0.00044,2]
[392137618,1761203440477,-2000.0,0.00044,2]
[392137619,1761203440486,-2000.0,0.00044,2]
[392137620,1761203440496,-223.87,0.00044,2]
[392137621,1761203440505,-1657.98182578,0.00044,120]
[392137622,1761203440515,-5000.0,0.00044,2]
[392137623,1761203440525,-1065.38,0.00044004,2]
[392137624,1761203440534,-215.2,0.00044006,7]
[392137625,1761203440544,-413.17,0.00044078,30]
[392137626,1761203440554,-150.0,0.00044087,30]
[392137627,1761203440564,-368.0,0.000441,30]
[392137628,1761203440573,-6537.0,0.00044268,2]
[392137629,1761203440582,-2593.0,0.00044268,2]
[392137630,1761203440591,-6454.0,0.00044268,2]
[392137631,1761203440601,-557.0,0.00044268,2]
[392137632,1761203440610,-500.0,0.00044314,2]
[392137634,1761203440619,-150.0,0.00044344,30]
[392137635,1761203440628,-168.0,0.00044418,2]
[392137636,1761203440639,-168.0,0.00044537,2]
[392137637,1761203440648,-368.0,0.0004455,30]
[392137638,1761203440657,-20037.69487139,0.0004465,30]
[392137639,1761203440667,-837.5838117,0.0004467,2]
[392137640,1761203440677,-276.84696617,0.00044799,120]
[392137641,1761203440687,-531.53563957,0.000448,30]
[392137642,1761203440697,-7942.74875047,0.000448,15]
[392137643,1761203440706,-7942.74875041,0.00044817,15]
[392137644,1761203440715,-1415.23709,0.0004482,25]
[392137645,1761203440724,-7942.74875041,0.00044834,15]
[392137646,1761203440734,-7942.74875041,0.00044852,15]
[392137647,1761203440743,-7942.74875041,0.00044869,15]
[392137648,1761203440752,-248.44065343,0.00044886,28]
[392137649,1761203440761,-7942.74875041,0.00044886,15]
[392137650,1761203440771,-296.46,0.0004489,2]
[392137651,1761203440780,-1057.26544112,0.00044898,17]
[392137652,1761203440790,-160.75626769,0.000449,20]
[392137653,1761203440801,-169.83769794,0.000449,17]
[392137654,1761203440810,-5000.0,0.000449,120]
[392137655,1761203440820,-155555.0,0.000449,120]
[392137656,1761203440829,-2582.63870589,0.000449,2]
[392137657,1761203440839,-261.81856914,0.000449,2]
[392137658,1761203440849,-789.03555164,0.000449,120]
[392137659,1761203440858,-7942.74875041,0.00044903,15]
[392137660,1761203440868,-7942.74875041,0.00044921,15]
[392137661,1761203440886,-7942.74875041,0.00044938,15]
[392137662,1761203440898,-168.0,0.00044942,2]
[392137663,1761203440907,-7942.74875041,0.00044955,15]
[392137664,1761203440918,-700.0,0.0004497,3]
[392137665,1761203440927,-700.0,0.0004497,3]
[392137666,1761203440937,-700.0,0.0004497,3]
[392137667,1761203440948,-700.0,0.0004497,3]
[392137668,1761203440958,-700.0,0.0004497,3]
[392137669,1761203440967,-700.0,0.0004497,3]
[392137670,1761203440978,-900.0,0.0004497,3]
[392137671,1761203440989,-296.46,0.0004497,2]
[392137672,1761203440999,-151.32769674,0.00044973,2]
[392137673,1761203441008,-150.0,0.00044973,2]
[392137674,1761203441018,-150.0,0.00044973,2]
[392137675,1761203441027,-156.93356113,0.00044973,2]
[392137676,1761203441036,-153.08227759,0.00044973,2]
[392137677,1761203441046,-150.0,0.00044973,2]
[392137678,1761203441055,-150.0,0.00044973,2]
[392137679,1761203441065,-150.0,0.00044973,2]
[392137680,1761203441074,-150.0,0.00044973,2]
[392137681,1761203441084,-150.561226,0.00044973,2]
[392137682,1761203441094,-500.0,0.00044973,2]
[392137683,1761203441103,-500.0,0.00044973,2]
[392137684,1761203441113,-501.49558778,0.00044973,2]
[392137685,1761203441122,-211.72444084,0.00044973,2]
[392137686,1761203441131,-172.25,0.00044973,7]
[392137687,1761203441141,-151.88516828,0.00044973,2]
[392137688,1761203441152,-151.60181224,0.00044973,2]
[392137689,1761203441163,-151.73114524,0.00044973,2]
[392137690,1761203441173,-150.0,0.00044973,2]
[392137691,1761203441183,-186.83551037,0.00044973,2]
[392137692,1761203441192,-263.93004083,0.00044973,2]
[392137693,1761203441202,-150.0,0.00044973,2]
[392137694,1761203441211,-153.67025196,0.00044973,2]
[392137695,1761203441221,-150.0,0.00044973,2]
[392137696,1761203441230,-252.05028089,0.00044973,2]
[392137697,1761203441240,-154.35489142,0.00044973,2]
[392137698,1761203441249,-150.0,0.00044973,2]
[392137699,1761203441260,-500.0,0.00044973,2]
[392137700,1761203441270,-500.0,0.00044973,2]
[392137701,1761203441279,-500.0,0.00044973,2]
[392137702,1761203441289,-150.0,0.00044973,2]
[392137703,1761203441299,-500.0,0.00044973,120]
[392137704,1761203441309,-150.0,0.00044973,2]
[392137705,1761203441318,-150.0,0.00044973,2]
[392137706,1761203441328,-150.0,0.00044973,2]
[392137707,1761203441337,-150.0,0.00044973,2]
[392137708,1761203441346,-200.0,0.00044973,2]
[392137709,1761203441355,-500.0,0.00044973,2]
[392137710,1761203441365,-500.0,0.00044973,2]
[392137711,1761203441375,-5800.0,0.0004498,14]
[392137712,1761203441384,-1108.0,0.00044986,120]
[392137713,1761203441394,-150.0,0.00044986,30]
[392137714,1761203441404,-150.0,0.00044986,30]
[392137715,1761203441414,-150.0,0.00044986,30]
[392137716,1761203441423,-150.0,0.00044986,30]
[392137717,1761203441432,-150.0,0.00044986,30]
[392137718,1761203441442,-150.0,0.00044986,30]
[392137719,1761203441455,-150.0,0.00044986,30]
[392137720,1761203441464,-150.0,0.00044986,30]
[392137721,1761203441474,-150.0,0.00044986,30]
[392137722,1761203441483,-263.78589693,0.0004499,7]
[392137723,1761203441493,-263.78589693,0.0004499,7]
[392137724,1761203441502,-296.46,0.0004499,2]
[392137725,1761203441512,-296.46,0.0004499,2]
[392137726,1761203441521,-296.46,0.0004499,2]
[392137727,1761203441531,-150.64,0.0004499,2]
[392137728,1761203441541,-150.64,0.0004499,2]
[392137729,1761203441551,-150.64,0.0004499,2]
[392137730,1761203441561,-150.64,0.0004499,2]
[392137731,1761203441571,-150.64,0.0004499,2]
[392137732,1761203441581,-150.64,0.0004499,2]
[392137733,1761203441591,-150.64,0.0004499,2]
[392137734,1761203441600,-150.64,0.0004499,2]
[392137735,1761203441610,-150.64,0.0004499,2]
[392137736,1761203441620,-3546.45,0.00044998,120]
[392137737,1761203441629,-2999.99,0.00044998,120]
[392137738,1761203441638,-151.0,0.00044998,120]
[392137739,1761203441649,-151.0,0.00044998,120]
[392137740,1761203441658,-277.35679052,0.00044998,30]
[392137741,1761203441668,-589.4890401,0.00044999,2]
[392137742,1761203441677,-151.0,0.00044999,2]
[392137743,1761203441687,-151.0,0.00044999,2]
[392137744,1761203441696,-28206.2676958,0.00044999,2]
[392137745,1761203441706,-491.414296,0.00044999,120]
[392137746,1761203441715,-151.0,0.00044999,120]
[392137747,1761203441724,-151.0,0.00044999,120]
[392137748,1761203441734,-1415.23709,0.00044999,26]
[392137749,1761203441744,-500.0,0.00044999,120]
[392137750,1761203441753,-500.0,0.00044999,120]
[392137751,1761203441763,-500.0,0.00044999,120]
[392137752,1761203441773,-500.0,0.00044999,120]
[392137753,1761203441782,-500.0,0.00044999,120]
[392137754,1761203441791,-500.0,0.00044999,120]
[392137755,1761203441801,-500.0,0.00044999,120]
[392137756,1761203441810,-500.0,0.00044999,120]
[392137757,1761203441820,-500.0,0.00044999,120]
[392137758,1761203441834,-500.0,0.00044999,120]
[392137759,1761203441845,-500.0,0.00044999,120]
[392137760,1761203441854,-500.0,0.00044999,120]
[392137761,1761203441864,-500.0,0.00044999,120]
[392137762,1761203441873,-500.0,0.00044999,120]
[392137763,1761203441883,-500.0,0.00044999,120]
[392137764,1761203441893,-500.0,0.00044999,120]
[392137765,1761203441902,-844.0,0.00045,7]
[392137766,1761203441914,-169801.63061139,0.00045,120]
[392137767,1761203441923,-1000000.0,0.00045,120]
[392137768,1761203441933,-35000.0,0.00045,120]
[392137769,1761203441943,-60368.61,0.00045,120]
[392137770,1761203441952,-379552.0,0.00045,120]
[392137771,1761203441962,-1000000.0,0.00045,120]
[392137772,1761203441972,-1000000.0,0.00045,120]
[392137773,1761203441982,-4024.58,0.00045,120]
[392137774,1761203441992,-2647.0,0.00045,120]
[392137775,1761203442004,-1908.09,0.00045,14]
[392137776,1761203442014,-9187.38,0.00045,30]
[392137777,1761203442024,-171.845015,0.00045,120]
[392137778,1761203442035,-151.0,0.00045,120]
[392137779,1761203442044,-368.0,0.00045,30]
[392137780,1761203442053,-553.79203148,0.00045,30]
[392137781,1761203442063,-370000.0,0.00045,120]
[392137782,1761203442074,-151.0,0.00045,120]
[392137783,1761203442083,-151.0,0.00045,120]
[392137784,1761203442092,-151.0,0.00045,120]
[392137785,1761203442102,-151.0,0.00045,120]
[392137786,1761203442111,-151.0,0.00045,120]
[392137787,1761203442120,-151.0,0.00045,120]
[392137788,1761203442130,-151.0,0.00045,120]
[392137789,1761203442139,-151.0,0.00045,120]
[392137790,1761203442149,-244.110235,0.00045,120]
[392137791,1761203442162,-151.0,0.00045,120]
[392137792,1761203442172,-151.0,0.00045,120]
[392137793,1761203442182,-151.0,0.00045,120]
[392137794,1761203442191,-151.0,0.00045,120]
[392137795,1761203442200,-297.051654,0.00045,30]
[392137796,1761203442210,-297.051654,0.00045,30]
[392137797,1761203442223,-297.051654,0.00045,30]
[392137798,1761203442234,-297.051654,0.00045,30]
[392137799,1761203442243,-297.051654,0.00045,30]
[392137800,1761203442253,-297.051654,0.00045,30]
[392137801,1761203442263,-297.051654,0.00045,30]
[392137802,1761203442273,-297.051654,0.00045,30]
[392137803,1761203442282,-297.051654,0.00045,30]
[392137804,1761203442291,-297.051654,0.00045,30]
[392137805,1761203442300,-297.051654,0.00045,30]
[392137806,1761203442311,-297.051654,0.00045,30]
[392137807,1761203442322,-297.051654,0.00045,30]
[392137808,1761203442332,-297.051654,0.00045,30]
[392137809,1761203442342,-297.051654,0.00045,30]
[392137810,1761203442352,-297.051654,0.00045,30]
[392137811,1761203442362,-297.051654,0.00045,30]
[392137812,1761203442373,-297.051654,0.00045,30]
[392137813,1761203442383,-297.051654,0.00045,30]
[392137814,1761203442393,-297.051661,0.00045,30]
[392137815,1761203442403,-151.0,0.00045,120]
[392137816,1761203442413,-151.0,0.00045,120]
[392137817,1761203442423,-151.0,0.00045,120]
[392137818,1761203442433,-151.0,0.00045,120]
[392137819,1761203442443,-151.0,0.00045,120]
[392137820,1761203442452,-251.173175,0.00045,120]
[392137821,1761203442463,-158.646437,0.00045,120]
[392137822,1761203442473,-183.300458,0.00045,120]
[392137823,1761203442483,-500.0,0.00045,16]
[392137824,1761203442493,-500.0,0.00045,16]
[392137825,1761203442503,-500.0,0.00045,16]
[392137826,1761203442514,-151.72158063,0.00045,16]
[392137827,1761203442524,-500.0,0.00045,16]
[392137828,1761203442535,-500.0,0.00045,16]
[392137829,1761203442544,-500.0,0.00045,16]
[392137830,1761203442554,-500.0,0.00045,16]
[392137831,1761203442563,-500.0,0.00045,16]
[392137832,1761203442573,-500.0,0.00045,16]
[392137833,1761203442584,-500.0,0.00045,16]
[392137834,1761203442599,-500.0,0.00045,16]
[392137835,1761203442610,-500.0,0.00045,32]
[392137836,1761203442619,-200.0,0.00045028,2]
[392137837,1761203442629,-200.0,0.00045028,2]
[392137838,1761203442638,-200.0,0.00045028,2]
[392137839,1761203442648,-153.04425634,0.00045028,2]
[392137840,1761203442658,-150.0,0.00045028,2]
[392137841,1761203442667,-150.0,0.00045028,2]
[392137842,1761203442678,-500.0,0.00045028,2]
[392137845,1761203442851,-500.0,0.00045028,2]
[392137846,1761203442862,-500.0,0.00045028,2]
[392137847,1761203442872,-150.0,0.00045028,2]
[392137848,1761203442881,-500.0,0.00045028,120]
[392137849,1761203442891,-150.0,0.00045028,2]
[392137850,1761203442900,-200.0,0.00045028,2]
[392137851,1761203442911,-200.0,0.00045028,2]
[392137852,1761203442920,-500.0,0.00045028,2]
[392137853,1761203442930,-500.0,0.00045028,2]
[392137854,1761203442940,-150.64,0.0004504,2]
[392137857,1761203442954,-150.64,0.0004504,2]
[392137858,1761203442965,-500.0,0.00045049,120]
[392137859,1761203442974,-500.0,0.00045049,120]
[392137860,1761203442984,-500.0,0.00045049,120]
[392137861,1761203442994,-500.0,0.00045049,120]
[392137862,1761203443003,-500.0,0.00045049,120]
[392137863,1761203443012,-523.09344443,0.00045049,120]
[392137864,1761203443022,-1000000.0,0.0004505,120]
[392137865,1761203443032,-168.0,0.00045055,7]
[392137866,1761203443041,-572.0,0.00045068,2]
[392137867,1761203443051,-154.091,0.00045068,2]
[392137868,1761203443061,-738.676,0.00045068,2]
[392137869,1761203443070,-150.0,0.00045083,2]
[392137870,1761203443079,-413.17987676,0.00045083,2]
[392137871,1761203443088,-500.0,0.00045083,2]
[392137872,1761203443102,-500.0,0.00045083,2]
[392137873,1761203443112,-150.0,0.00045083,2]
[392137874,1761203443121,-500.0,0.00045083,120]
[392137875,1761203443130,-200.0,0.00045083,2]
[392137876,1761203443140,-500.0,0.00045083,2]
[392137877,1761203443151,-500.0,0.00045083,2]
[392137878,1761203443164,-263.78589693,0.0004509,7]
[392137879,1761203443176,-150.64,0.0004509,2]
[392137880,1761203443186,-150.64,0.0004509,2]
[392137881,1761203443196,-1000000.0,0.000451,120]
[392137882,1761203443205,-216.03617143,0.00045137,2]
[392137883,1761203443216,-500.0,0.00045137,2]
[392137884,1761203443225,-500.0,0.00045137,2]
[392137885,1761203443235,-150.0,0.00045137,2]
[392137886,1761203443245,-500.0,0.00045137,120]
[392137887,1761203443254,-500.0,0.00045137,2]
[392137888,1761203443264,-500.0,0.00045137,2]
[392137889,1761203443274,-168.0,0.00045149,2]
[392137890,1761203443283,-168.0,0.00045169,2]
[392137891,1761203443292,-500.0,0.00045192,2]
[392137892,1761203443301,-500.0,0.00045192,2]
[392137893,1761203443311,-150.0,0.00045192,2]
[392137894,1761203443320,-550.0,0.00045192,120]
[392137895,1761203443330,-500.0,0.00045192,2]
[392137896,1761203443339,-500.0,0.00045192,2]
[392137897,1761203443348,-1000000.0,0.000452,120]
[392137898,1761203443358,-500.0,0.00045247,2]
[392137899,1761203443367,-507.67148184,0.00045247,2]
[392137900,1761203443377,-150.0,0.00045247,2]
[392137901,1761203443386,-500.0,0.00045247,2]
[392137902,1761203443396,-500.0,0.00045247,2]
[392137903,1761203443406,-172.25,0.00045247,7]
[392137904,1761203443416,-168.0,0.00045289,2]
[392137905,1761203443426,-995763.67958562,0.000453,120]
[392137906,1761203443490,-1300.0,0.000453,120]
[392137907,1761203443504,-2936.32041438,0.000453,120]
[392137908,1761203443513,-500.0,0.000453,120]
[392137909,1761203443522,-200.0,0.000453,120]
[392137910,1761203443532,-500.0,0.00045302,2]
[392137911,1761203443542,-500.0,0.00045302,2]
[392137912,1761203443551,-425.0457983,0.00045302,2]
[392137913,1761203443561,-1374.06259054,0.0004532,27]
[392137914,1761203443572,-41.17450946,0.0004532,27]
[392137915,1761203443581,-210.74625113,0.00045357,2]
[392137916,1761203443610,-289.25374887,0.00045357,2]
[392137917,1761203443619,-167.48195695,0.00045357,2]
[392137918,1761203443628,-31.58398766,0.000454,120]
[392137919,1761203443666,-189.83345289,0.00045028,2]
[392137920,1761203443675,-224.95427598,0.00045028,2]
[392137921,1761203443684,-3754.523848,0.000454,120]
[392137922,1761203444967,-5509.8039,0.000454,120]
[392138932,1761203811634,29429.8,0.00015,2]
[392138933,1761203811662,67.70897991,0.00015,2]
[392138974,1761204308782,99932.29102009,0.00015,2]
[392138975,1761204308812,100000.0,0.00015,2]
[392138976,1761204308842,100000.0,0.00015,2]
[392138977,1761204308870,100000.0,0.00015,2]
[392138978,1761204308899,68500.00367338,0.00015,2]
[392138984,1761204341665,5589.761,0.0002,2]
[392138985,1761204363105,4861.46952472,8e-05,2]
[392138987,1761204391475,1134.98,0.00020766,2]
[392138988,1761204391620,1134.98,0.00021859,2]
[392138989,1761204405214,500.0,0.00016438,2]
[392138990,1761204405247,932.92955,0.00017534,2]
[392138995,1761204417700,5000.0,0.000162,5]
[392139000,1761204469897,2188.02343629,0.00013,2]
[392139006,1761204510685,4079.42116287,0.00021,2]
[392139011,1761204522577,445.93920695,0.0001,2]
[392139012,1761204547136,-1134.98,0.00022952,2]
[392139013,1761204547171,-1134.98,0.00024045,2]
[392139014,1761204547195,-287.53378082,0.00025038,2]
[392139015,1761204547220,-1134.98,0.00025138,2]
[392139016,1761204547243,-926.31325918,0.00026231,2]
[392139018,1761204555106,-208.66674082,0.00026231,2]
[392139024,1761204561143,-1134.98,0.00027324,2]
[392139025,1761204561165,-283.0,0.00027999,2]
[392139026,1761204561186,-5858.96657696,0.00028,2]
[392139027,1761204561209,-1134.98,0.00028417,2]
[392139028,1761204561235,-98.68644304,0.0002951,2]
[392139029,1761204562155,-1036.29355696,0.0002951,2]
[392139030,1761204562179,-1134.98,0.00030603,2]
[392139049,1761204632347,-4029.7571696,0.00030888,60]
[392139050,1761204632618,-494.15426274,0.00030888,60]
[392139051,1761204632650,-174.27948489,0.00030888,60]
[392139052,1761204632660,-226.11695229,0.00031,7]
[392139053,1761204632671,-23.88304771,0.00031,7]
[392139054,1761204632681,-1134.98,0.00031696,2]
[392139055,1761204632691,-150.0,0.00031696,2]
[392139056,1761204632700,-1134.98,0.00032789,2]
[392139057,1761204632709,-166.66,0.00033519,30]
[392139058,1761204632719,-1134.98,0.00033882,2]
[392139060,1761204632730,-1347.8761167,0.000339,30]
[392139062,1761204632743,-192.22045465,0.00033977,120]
[392139064,1761204632752,-227.0,0.00033977,2]
[392139066,1761204632762,-413.7493024,0.00033977,120]
[392139068,1761204632771,-500.0,0.00033998,7]
[392139070,1761204632780,-500.0,0.00033998,7]
[392139072,1761204632790,-500.0,0.00033998,7]
[392139073,1761204632799,-500.0,0.00033998,7]
[392139075,1761204632813,-405.0,0.00033998,7]
[392139077,1761204632822,-500.0,0.00033998,7]
[392139079,1761204632831,-500.0,0.00033998,7]
[392139081,1761204632840,-337.67078228,0.00033998,7]
[392139155,1761204638418,-162.32921772,0.00033998,7]
[392139156,1761204638428,-500.0,0.00033998,7]
[392139157,1761204638438,-500.0,0.00033998,7]
[392139158,1761204638447,-46950.46612037,0.00033999,2]
[392139159,1761204638457,-166.66,0.00034225,30]
[392139160,1761204638470,-1701.75587599,0.0003449,2]
[392139161,1761204638480,-246.8930103,0.00034559,7]
[392139162,1761204638489,-500.0,0.00034559,7]
[392139163,1761204638499,-214.72433799,0.00034559,7]
[392139164,1761204638509,-358.31104875,0.00034559,7]
[392139181,1761204638704,-41256.93640244,0.0003456,2]
[392139183,1761204638714,-166.66,0.0003493,30]
[392139185,1761204638724,-1134.98,0.00034975,2]
[392139187,1761204638735,-239.0,0.00035,7]
[392139189,1761204638745,-166.66,0.00035636,30]
[392139191,1761204638755,-500.0,0.00035973,5]
[392139193,1761204638765,-135804.27483456,0.00036,5]
[392139195,1761204638777,-39777.15775027,0.00036,5]
[392139198,1761204638793,-1859.06961303,0.00036,5]
[392139374,1761204640458,-915.6857705,0.00036,5]
[392139376,1761204640469,-523.49738546,0.00036,5]
[392139389,1761204640585,-297.7262798,0.00036,5]
[392139392,1761204640597,-682.60523184,0.00036,5]
[392139611,1761204643354,-3683.15308665,0.00035968,2]
[392139612,1761204643364,-7301.84691335,0.00036,5]
[392139613,1761204643533,-594.27179784,0.00036,5]
[392139614,1761204643592,-2193.0,0.00036,5]
[392139615,1761204643686,-2199.01862,0.00036,5]
[392139830,1761204647175,-50318.32249343,0.0003621,2]
[392139834,1761204647203,-2632.3293306,0.0003621,2]
[392139838,1761204647228,-5635.43871875,0.0003621,2]
[392139841,1761204647256,-1543.42021678,0.0003621,2]
[392139845,1761204647281,-1045.26340477,0.0003621,2]
[392139849,1761204647308,-2256.92207723,0.0003621,2]
[392139853,1761204647334,-2487095.66873753,0.0003621,2]
[392139856,1761204647359,-2744.10257813,0.0003621,2]
[392139860,1761204647387,-219582.37685567,0.0003621,2]
[392139864,1761204647411,-153.58167845,0.0003621,2]
[392139867,1761204647435,-1702.62553106,0.0003621,2]
[392139871,1761204647460,-252.88495386,0.0003621,2]
[392139875,1761204647484,-169.56665046,0.0003621,2]
[392139878,1761204647509,-500.0,0.0003621,2]
[392139882,1761204647534,-1005.16488066,0.0003621,2]
[392139885,1761204647558,-1280.29657953,0.0003621,2]
[392139889,1761204647582,-247.23434087,0.0003621,2]
[392139893,1761204647607,-1057.22910308,0.0003621,2]
[392139896,1761204647632,-553.46387173,0.0003621,2]
[392139900,1761204647657,-9373.06441431,0.0003621,2]
[392139904,1761204647681,-1331.28237837,0.0003621,2]
[392139907,1761204647706,-3471.71218445,0.0003621,2]
[392139911,1761204647731,-2228.9890443,0.0003621,2]
[392139916,1761204647768,-23152.26740038,0.0003621,2]
[392139919,1761204647794,-758.72753568,0.0003621,2]
[392139923,1761204647824,-13020.73658942,0.0003621,2]
[392139926,1761204647850,-1948.20346017,0.0003621,2]
[392139929,1761204647875,-186.79944941,0.0003621,2]
[392139933,1761204647900,-5094.03213178,0.0003621,2]